Workbook

Sheet MSS
B1: Pekka Sorvi | E1: 25.9.1974
B2: YKKÖSPESIS | E2: Runkosarja | L2: Runkosarja TOP-10 | Q2: Jatkosarjat | X2: SUOMENSARJA | AA2: Runkosarja | AH2: Runkosarja TOP-10 | AM2: Jatkosarjat
B3: Vuosi | C3: Sija | D3: Seura | E3: OTT | F3: KUN | G3: LÖI | H3: TOI | I3: KL | J3: KL-% | L3: LÖI | M3: TOI | N3: L+T | O3: KL | Q3: OTT | R3: KUN | S3: LÖI | T3: TOI | U3: KL | V3: KL-% | X3: Vuosi | Y3: Sija | Z3: Seura | AA3: OTT | AB3: KUN | AC3: LÖI | AD3: TOI | AE3: KL | AF3: KL-% | AH3: LÖI | AI3: TOI | AJ3: L+T | AK3: KL | AM3: OTT | AN3: KUN | AO3: LÖI | AP3: TOI | AQ3: KL | AR3: KL-%
X4: 1990 | Y4: 4. | Z4: ToU | AA4: 1 | AB4: 0 | AC4: 0 | AD4: 0
X6: 1992 | Y6: 7. | Z6: ToPo | AA6: 1 | AB6: 0 | AC6: 0 | AD6: 1
X8: 2001 | Y8: 5. | Z8: KiPa 2 | AA8: 11 | AB8: 2 | AC8: 2 | AD8: 18 | AE8: 54 | AF8: 68.4 % | AG8: 79
X9: 2002 | Y9: 1. | Z9: KiPa 2 | AA9: 17 | AB9: 1 | AC9: 1 | AD9: 40 | AE9: 87 | AF9: 69.6 % | AG9: 125 | AI9: 1. | AJ9: 6. | AK9: 8. | AM9: 4 | AN9: 0 | AO9: 0 | AP9: 7 | AQ9: 19 | AR9: 76.0 % | AS9: 25
B10: YHTEENSÄ | E10: =SUM(E4:E9) -> 0 | F10: =SUM(F4:F9) -> 0 | G10: =SUM(G4:G9) -> 0 | H10: =SUM(H4:H9) -> 0 | I10: =SUM(I4:I9) -> 0 | J10: 0.0 % | K10: =SUM(K4:K9) -> 0 | Q10: =SUM(Q4:Q9) -> 0 | R10: =SUM(R4:R9) -> 0 | S10: =SUM(S4:S9) -> 0 | T10: =SUM(T4:T9) -> 0 | U10: =SUM(U4:U9) -> 0 | V10: 0.0 % | W10: =SUM(W4:W9) -> 0 | X10: YHTEENSÄ | AA10: =SUM(AA4:AA9) -> 30 | AB10: =SUM(AB4:AB9) -> 3 | AC10: =SUM(AC4:AC9) -> 3 | AD10: =SUM(AD4:AD9) -> 59 | AE10: =SUM(AE4:AE9) -> 141 | AF10: =PRODUCT(AE10/AG10) -> 69.1 % | AG10: =SUM(AG4:AG9) -> 204 | AM10: =SUM(AM4:AM9) -> 4 | AN10: =SUM(AN4:AN9) -> 0 | AO10: =SUM(AO4:AO9) -> 0 | AP10: =SUM(AP4:AP9) -> 7 | AQ10: =SUM(AQ4:AQ9) -> 19 | AR10: =PRODUCT(AQ10/AS10) -> 76.0 % | AS10: =SUM(AS4:AS9) -> 25
B12: KAIKKI OTTELUT | E12: OTT | F12: KUN | G12: LÖI | H12: TOI | I12: KL | J12: KL-% | L12: ka/L | M12: ka/T | N12: ka/l+t | O12: ka/kl | R12: Seurat | T12: ToU = Tohmajärven Urheilijat (1934)
B13: SUPERPESIS | E13: 0 | F13: 0 | G13: 0 | H13: 0 | I13: 0 | J13: 0.0 % | K13: 0 | L13: 0.00 | M13: 0.00 | N13: 0.00 | O13: 0.00 | T13: ToPo = Tohmajärven Pomppu (1991)
B14: YKKÖSPESIS | E14: =PRODUCT(E10+Q10) -> 0 | F14: =PRODUCT(F10+R10) -> 0 | G14: =PRODUCT(G10+S10) -> 0 | H14: =PRODUCT(H10+T10) -> 0 | I14: =PRODUCT(I10+U10) -> 0 | J14: 0.0 % | K14: =PRODUCT(K10+W10) -> 0 | L14: 0.00 | M14: 0.00 | N14: 0.00 | O14: 0.00 | T14: KiPa = Kiteen Pallo-90 (1990)
B15: SUOMENSARJA | E15: =PRODUCT(AA10+AM10) -> 34 | F15: =PRODUCT(AB10+AN10) -> 3 | G15: =PRODUCT(AC10+AO10) -> 3 | H15: =PRODUCT(AD10+AP10) -> 66 | I15: =PRODUCT(AE10+AQ10) -> 160 | J15: =PRODUCT(I15/K15) -> 69.9 % | K15: =PRODUCT(AG10+AS10) -> 229 | L15: =PRODUCT((F15+G15)/E15) -> 0.18 | M15: =PRODUCT(H15/E15) -> 1.94 | N15: =PRODUCT((F15+G15+H15)/E15) -> 2.12 | O15: =PRODUCT(I15/32) -> 5.00
B16: YHTEENSÄ | E16: =SUM(E13:E15) -> 34 | F16: =SUM(F13:F15) -> 3 | G16: 3 | H16: 66 | I16: 160 | J16: =PRODUCT(I16/K16) -> 69.9 % | K16: =SUM(K13:K15) -> 229 | L16: =PRODUCT((F16+G16)/E16) -> 0.18 | M16: =PRODUCT(H16/E16) -> 1.94 | N16: =PRODUCT((F16+G16+H16)/E16) -> 2.12 | O16: =PRODUCT(I16/32) -> 5.00
